bitfinex/quotes_SOLUSD_20260109
["timestamp","ask_amount","ask_price","bid_price","bid_amount"]
[1767996610852,7.5277918,136.1,136.07,0.68330295]
[1767996613459,0.18018298,136.1,136.07,0.68330295]
[1767996613633,12.53837243,136.11,136.07,0.68330295]
[1767996616859,8.00023464,136.11,136.07,0.68330295]
[1767996618458,0.18018298,136.1,136.07,0.68330295]
[1767996619734,0.6482386,136.09,136.06,7.2]
[1767996620062,7.34768768,136.1,136.02,0.68330295]
[1767996620063,4.53813779,136.07,136.02,0.68330295]
[1767996620246,4.53813779,136.06,136.02,0.68330295]
[1767996620454,11.88807522,136.06,136.02,0.68330295]
[1767996620835,4.53813779,136.04,135.99,4.53813779]
[1767996621032,4.53813779,136.04,136.0,0.68330295]
[1767996621967,5.19110422,136.04,136.0,0.68330295]
[1767996622652,12.54223723,136.04,136.0,0.68330295]
[1767996623632,8.00409944,136.04,136.0,5.22144074]
[1767996626252,0.15048299,136.03,136.0,5.22144074]
[1767996626554,0.12048299,136.03,136.0,5.22144074]
[1767996631267,8.00409944,136.04,136.01,0.68330295]
[1767996633071,8.00381205,136.04,136.01,0.68330295]
[1767996635067,0.65296643,136.04,136.01,0.68330295]
[1767996635275,0.65296643,136.04,136.02,4.53813779]
[1767996636476,0.65296643,136.04,136.02,5.24842806]
[1767996636875,0.65296643,136.04,136.02,4.53813779]
[1767996638077,0.65296643,136.04,136.02,5.24842806]
[1767996638585,20.38443384,136.08,136.03,5.24842806]
[1767996638586,0.67496946,136.06,136.03,5.24842806]
[1767996638760,0.67496946,136.06,136.04,5.24842806]
[1767996639265,0.67496946,136.07,136.05,4.53813779]
[1767996639577,0.67496946,136.07,136.04,5.24842806]
[1767996645484,0.67496946,136.07,136.04,0.71029027]
[1767996647384,0.67496946,136.07,136.04,5.24842806]
[1767996647785,0.67496946,136.07,136.04,0.71029027]
[1767996648187,8.02381876,136.08,136.05,0.71029027]
[1767996649274,0.099,136.07,136.05,0.71029027]
[1767996649477,0.099,136.07,136.04,0.68330547]
[1767996653377,0.67496946,136.08,136.04,0.68330547]
[1767996654196,8.02381307,136.08,136.04,0.68330547]
[1767996654369,0.099,136.07,136.04,0.68330547]
[1767996660504,0.099,136.07,136.03,0.68330547]
[1767996663106,0.099,136.07,136.04,0.69675839]
[1767996665316,0.099,136.07,136.03,0.69675839]
[1767996665811,0.099,136.07,136.03,0.63675841]
[1767996666885,0.099,136.07,136.03,0.57675845]
[1767996667212,0.099,136.07,136.03,0.51675846]
[1767996667416,0.099,136.07,136.03,5.05489625]
[1767996667597,0.099,136.07,136.03,4.53813779]
[1767996669113,0.099,136.07,136.03,5.23489618]
[1767996669610,0.099,136.07,136.04,0.69675839]
[1767996669797,0.099,136.07,136.04,0.57675845]
[1767996670609,21.2790858,136.08,136.04,0.57675845]
[1767996670799,21.9877016,136.08,136.04,0.57675845]
[1767996671715,0.36268999,136.07,136.04,0.57675845]
[1767996672733,8.05831446,136.06,136.04,0.55000134]
[1767996672892,7.34969866,136.06,136.04,0.55000134]
[1767996676923,7.34969866,136.06,136.04,0.49000137]
[1767996679217,7.34969866,136.06,136.04,0.46324426]
[1767996682025,8.05801401,136.07,136.04,0.46324426]
[1767996683822,8.05801401,136.07,136.04,0.4032443]
[1767996684125,8.05801401,136.07,136.04,0.34324431]
[1767996686929,14.24931721,136.07,136.04,0.34324431]
[1767996687427,14.24931721,136.07,136.04,3.25078397]
[1767996688226,14.24931721,136.07,136.05,0.69675839]
[1767996688430,8.05801401,136.07,136.05,0.67000128]
[1767996688809,7.34939821,136.07,136.05,0.67000128]
[1767996689313,13.54070141,136.07,136.05,0.67000128]
[1767996690426,7.34939821,136.07,136.05,0.67000128]
[1767996690730,13.55363034,136.07,136.05,0.67000128]
[1767996690931,7.96975674,136.07,136.05,0.61000129]
[1767996691132,7.96975674,136.07,136.05,0.5500013]
[1767996694013,7.96975674,136.07,136.04,2.90753966]
[1767996694014,4.96345794,136.06,136.04,2.90753966]
[1767996694215,4.96345794,136.05,136.04,2.90753966]
[1767996695634,4.96345794,136.05,136.03,2.90753966]
[1767996695835,2.62589935,136.04,136.03,2.90753966]
[1767996696036,7.34939821,136.07,136.04,0.71330446]
[1767996697035,8.07116798,136.07,136.04,0.71330446]
[1767996705741,14.27540011,136.07,136.04,0.71330446]
[1767996707750,4.96271324,136.06,136.04,0.71330446]
[1767996708048,4.96271324,136.05,136.04,0.71330446]
[1767996709250,4.96271324,136.05,136.04,0.65330447]
[1767996709433,8.06288573,136.1,136.04,10.25831884]
[1767996709631,8.06288573,136.1,136.06,2.90753966]
[1767996709831,8.06288573,136.1,136.04,20.77077918]
[1767996710033,8.06288573,136.1,136.06,2.90753966]
[1767996710551,0.7150034,136.09,136.06,2.90753966]
[1767996711847,8.06312348,136.09,136.06,2.84753966]
[1767996714456,0.7150034,136.09,136.04,13.42]
[1767996714757,3.62254306,136.05,135.99,23.68097866]
[1767996715130,0.7150034,136.03,135.99,13.42]
[1767996715444,2.90753966,136.04,135.96,0.2]
[1767996715445,3.62254306,136.0,135.96,0.2]
[1767996715641,0.7150034,135.99,135.96,0.2]
[1767996715846,3.62254306,136.0,135.96,0.2]
[1767996716036,3.62254306,136.02,135.97,2.90753966]
[1767996716352,10.97470332,136.02,135.97,2.90753966]
[1767996716649,10.97470332,136.02,135.97,10.26205486]
[1767996716855,0.7150034,136.02,135.98,2.90753966]
[1767996717238,0.7150034,136.02,135.99,2.90753966]
[1767996717956,0.7150034,136.02,135.98,2.90753966]
[1767996718135,0.68500341,136.02,135.99,0.02999999]
[1767996719059,10.25906943,136.03,135.99,0.02999999]
[1767996720158,10.97407283,136.03,135.99,0.02999999]
[1767996720354,0.7150034,136.02,135.99,0.02999999]
[1767996720661,3.62254306,136.02,135.98,0.02999999]
[1767996721267,10.97458077,136.02,135.98,0.02999999]
[1767996721458,4.9400737,136.01,135.98,0.02999999]
[1767996722166,10.97458077,136.02,135.98,0.02999999]
[1767996722862,8.06686357,136.02,135.98,0.02999999]
[1767996723066,0.70158183,136.01,135.98,0.02999999]
[1767996723369,0.70158183,136.01,135.96,3.13753965]
[1767996723370,0.70158183,136.0,135.96,3.13753965]
[1767996724372,0.70158183,136.0,135.96,10.49260339]
[1767996728246,0.70158183,136.0,135.97,2.90753966]
[1767996728563,8.05420283,136.01,135.97,2.93753965]
[1767996732676,8.05420283,136.01,135.97,4.57677003]
[1767996738888,0.70158183,136.0,135.97,4.57677003]
[1767996740292,0.70158183,136.0,135.97,0.02999999]
[1767996740600,0.70158183,136.0,135.96,12.13183377]
[1767996741068,0.70158183,136.0,135.97,0.02999999]
[1767996744184,0.70158183,136.0,135.96,12.13183377]
[1767996747296,0.70158183,136.0,135.97,4.54677004]
[1767996749481,0.70158183,136.0,135.97,11.9012918]
[1767996756787,0.70158183,136.0,135.97,7.35452176]
[1767996756990,0.70158183,136.0,135.97,11.9012918]
[1767996758195,5.62563266,136.01,135.98,4.57677003]
[1767996758508,0.69661751,136.03,135.99,4.57677003]
[1767996758674,5.64016466,136.02,135.99,4.57677003]
[1767996758876,4.94354715,136.01,135.99,4.57677003]
[1767996759075,0.69661751,136.02,135.99,4.57677003]
[1767996759302,4.94557806,136.01,135.99,4.57677003]
[1767996760808,4.94557806,136.01,135.99,0.02999999]
[1767996761010,4.94557806,136.01,135.99,4.57677003]
[1767996762711,4.94557806,136.01,136.0,0.02999999]
[1767996763206,4.94557806,136.02,136.0,0.02999999]
[1767996763512,4.94557806,136.01,136.0,0.02999999]
[1767996763809,4.94557806,136.01,135.99,11.90003367]
[1767996764008,0.69661751,136.03,136.0,4.54677004]
[1767996764191,4.95222909,136.02,135.99,11.90003367]
[1767996764386,4.95222909,136.01,135.99,11.90003367]
[1767996764685,0.69661751,136.03,135.99,11.90003367]
[1767996764886,4.9526618,136.02,135.99,11.90003367]
[1767996765102,4.9526618,136.01,135.99,11.90003367]
[1767996765401,0.69661751,136.03,135.99,11.90003367]
[1767996765586,4.95219477,136.02,135.99,11.90003367]
[1767996766615,4.95219477,136.02,136.0,4.54677004]
[1767996766989,0.69661751,136.04,136.0,4.54677004]
[1767996767188,4.95183522,136.03,136.0,4.54677004]
[1767996767410,4.95183522,136.02,136.0,4.54677004]
[1767996767723,0.69661751,136.04,136.0,4.54677004]
[1767996768013,4.9518652,136.03,136.0,4.54677004]
[1767996768214,4.9518652,136.02,136.0,4.54677004]
[1767996768405,0.69661751,136.04,136.0,4.54677004]
[1767996768614,4.95149295,136.03,136.0,4.54677004]
[1767996768803,4.95149295,136.02,136.0,4.54677004]
[1767996768989,0.69661751,136.04,136.0,4.54677004]
[1767996769188,4.95149295,136.03,136.0,4.54677004]
[1767996769389,4.95149295,136.02,136.0,4.54677004]
[1767996773435,4.95149295,136.02,135.99,11.90003367]
[1767996774293,5.60840621,136.02,135.99,7.35326363]
[1767996775722,5.60840621,136.02,135.98,25.32060233]
[1767996776096,5.60840621,136.02,135.97,103.1]
[1767996776097,0.65691326,136.0,135.97,103.1]
[1767996776408,0.65691326,136.0,135.96,7.55481553]
[1767996776615,0.65691326,135.99,135.96,7.55481553]
[1767996777401,0.65691326,135.99,135.96,12.10158557]
[1767996777908,0.65691326,135.99,135.97,4.54677004]
[1767996778108,0.65691326,135.98,135.96,0.2]
[1767996780320,0.65691326,135.97,135.94,0.2]
[1767996780622,0.65691326,135.95,135.94,0.2]
[1767996780821,18.36559384,135.96,135.9,0.2]
[1767996781122,4.54677004,135.94,135.9,0.2]
[1767996781337,4.93821808,135.93,135.89,0.2]
[1767996781518,4.54677004,135.92,135.89,0.2]
[1767996781714,4.54677004,135.9,135.88,0.2]
[1767996781914,4.54677004,135.9,135.87,0.2]
[1767996782098,4.54677004,135.91,135.87,0.2]
[1767996782924,0.65691326,135.9,135.87,0.2]
[1767996784801,0.67931174,135.89,135.87,0.2]
[1767996785720,0.47712999,135.87,135.84,0.2]
[1767996785921,0.06529718,135.86,135.82,5.41492671]
[1767996786121,0.03529719,135.86,135.82,5.41492671]
[1767996786421,0.03529719,135.86,135.83,4.74677004]
[1767996786622,4.54677004,135.88,135.83,5.41492671]
[1767996786937,7.36160188,135.84,135.82,0.2]
[1767996787234,7.36160188,135.84,135.8,5.21492671]
[1767996787723,4.54677004,135.83,135.79,0.66815667]
[1767996787909,11.90837192,135.84,135.79,5.21492671]
[1767996788109,4.54677004,135.82,135.78,0.66815667]
[1767996788337,7.36160188,135.84,135.77,0.76815667]
[1767996788338,0.28432314,135.83,135.77,0.76815667]
[1767996788525,0.28432314,135.83,135.77,0.1]
[1767996788526,4.54677004,135.8,135.77,0.1]
[1767996788705,4.54677004,135.8,135.77,1e-08]
[1767996789025,4.54677004,135.78,135.77,1e-08]
[1767996789205,11.91108258,135.79,135.76,1e-08]
[1767996789411,4.54677004,135.78,135.75,0.76815667]
[1767996789733,4.54677004,135.78,135.75,0.1]
[1767996789933,11.91108258,135.79,135.75,0.1]
[1767996790449,4.54677004,135.78,135.75,0.1]
[1767996790737,4.54677004,135.77,135.75,0.1]
[1767996791234,4.54677004,135.77,135.73,0.1]
[1767996791235,4.54677004,135.76,135.73,0.1]
[1767996791403,7.36544678,135.77,135.73,0.1]
[1767996791812,11.91221682,135.77,135.73,0.76815667]
[1767996792230,4.54677004,135.74,135.71,0.1]
[1767996792402,4.54677004,135.72,135.71,1e-08]
[1767996792605,4.54677004,135.72,135.68,16.01216771]
[1767996792807,4.54677004,135.71,135.68,16.01216771]
[1767996793026,11.91549635,135.71,135.68,16.01216771]
[1767996793545,7.36827123,135.72,135.68,16.01216771]
[1767996793832,11.91504127,135.72,135.68,16.01216771]
[1767996794609,7.36827123,135.72,135.68,16.01216771]
[1767996794810,10.29141218,135.72,135.68,16.01216771]
[1767996795431,2.92314095,135.71,135.68,15.34401104]
[1767996795616,2.92314095,135.7,135.68,15.34401104]
[1767996795931,2.92314095,135.69,135.66,0.66815667]
[1767996797441,13.44,135.71,135.63,7.3725599]
[1767996797442,23.73374226,135.68,135.64,0.66815667]
[1767996797606,20.81060131,135.68,135.63,0.66815667]
[1767996797804,20.81060131,135.68,135.62,2.92314095]
[1767996797805,2.92314095,135.66,135.62,0.66815667]
[1767996798017,23.73374226,135.68,135.63,2.92314095]
[1767996798226,0.28432314,135.7,135.65,0.66815667]
[1767996798434,2.92314095,135.67,135.62,3.59129762]
[1767996798628,2.92314095,135.67,135.63,0.66815667]
[1767996799033,2.92314095,135.66,135.6,3.26628005]
[1767996799223,0.28432314,135.68,135.62,0.66815667]
[1767996799415,10.29446106,135.67,135.62,0.66815667]
[1767996799625,10.29446106,135.67,135.63,0.66815667]
[1767996799819,7.37132011,135.67,135.64,0.66815667]
[1767996800037,10.29446106,135.67,135.64,0.66815667]
[1767996800237,2.92314095,135.65,135.6,0.3431391]
[1767996800414,2.92314095,135.62,135.6,0.3431391]
[1767996800620,16.38314095,135.62,135.6,0.3431391]
[1767996800832,13.46,135.62,135.6,0.3431391]
[1767996801229,13.46,135.62,135.55,18.44291061]
[1767996801230,13.46,135.62,135.56,8.04492157]
[1767996801536,13.46,135.61,135.58,2.92314095]
[1767996801832,7.37253993,135.64,135.59,3.59129762]
[1767996802034,7.37253993,135.64,135.6,2.92314095]
[1767996802236,7.37253993,135.64,135.59,3.59129762]
[1767996802440,13.46,135.63,135.6,2.92314095]
[1767996803023,13.46,135.63,135.59,3.59129762]
[1767996803426,13.46,135.65,135.61,3.59129762]
[1767996805132,20.83200851,135.65,135.62,2.92314095]
[1767996805537,20.83200851,135.65,135.61,0.66815667]
[1767996805847,20.83200851,135.65,135.62,2.92314095]
[1767996806017,20.83200851,135.65,135.62,3.59129762]
[1767996806443,18.42628371,135.68,135.62,3.59129762]
[1767996806643,13.46,135.67,135.63,3.59129762]
[1767996807148,13.46,135.67,135.63,0.66815667]
[1767996807440,23.75408579,135.67,135.63,0.66815667]
[1767996809858,20.83094484,135.67,135.63,0.66815667]
[1767996810359,23.75408579,135.67,135.62,3.59129762]
[1767996810940,20.83094484,135.67,135.62,3.59129762]
[1767996811165,20.83094484,135.67,135.63,0.66815667]
[1767996811390,23.75408579,135.67,135.63,0.66815667]
[1767996814272,2.92314095,135.64,135.59,3.6340163]
[1767996814565,16.38314095,135.63,135.59,0.71087535]
[1767996815650,13.46,135.62,135.61,0.71087535]
[1767996815859,13.46,135.64,135.61,0.71087535]
[1767996816163,16.38314095,135.64,135.61,0.71087535]
[1767996816554,20.83290909,135.64,135.61,0.71087535]
[1767996816780,23.75605004,135.64,135.61,0.71087535]
[1767996818673,10.29605004,135.64,135.61,0.71087535]
[1767996818974,23.75605004,135.64,135.61,0.71087535]
[1767996819548,2.92314095,135.62,135.57,0.71087535]
[1767996819777,2.92314095,135.59,135.54,0.71087535]
[1767996820371,2.92314095,135.59,135.55,0.71087535]
[1767996820862,2.92314095,135.59,135.56,0.71087535]
[1767996823275,10.29869418,135.59,135.56,0.71087535]
[1767996824676,10.29869418,135.59,135.55,0.71087535]
[1767996824983,7.37463126,135.6,135.55,0.71087535]
[1767996825280,13.46,135.59,135.56,0.71087535]
[1767996825455,7.37354372,135.62,135.56,0.71087535]
[1767996825788,16.38314095,135.61,135.56,0.71087535]
[1767996825963,13.46,135.61,135.56,3.6340163]
[1767996826276,10.29668467,135.62,135.59,0.71087535]
[1767996826277,7.37354372,135.62,135.59,0.71087535]
[1767996826482,20.83354372,135.62,135.59,0.71087535]
[1767996826678,20.83304055,135.63,135.59,0.71087535]
[1767996827562,23.7561815,135.63,135.59,0.71087535]
[1767996828274,20.83304055,135.63,135.59,0.71087535]
[1767996828979,23.7561815,135.63,135.59,0.71087535]
[1767996829874,16.38314095,135.63,135.59,0.71087535]
[1767996831389,16.38314095,135.63,135.57,0.69121908]
[1767996831581,2.92314095,135.62,135.57,0.69121908]
[1767996832382,13.46,135.63,135.57,0.69121908]
[1767996832593,2.92314095,135.62,135.57,0.69121908]
[1767996832789,20.83326003,135.63,135.58,0.69121908]
[1767996833070,2.92314095,135.62,135.58,0.69121908]
[1767996833873,10.29698981,135.62,135.58,0.69121908]
[1767996834389,2.92314095,135.61,135.57,0.69121908]
[1767996834786,10.29698981,135.62,135.57,0.69121908]
[1767996835091,10.29698981,135.62,135.58,0.69121908]
[1767996835892,23.75638166,135.63,135.59,0.69121908]
[1767996836484,7.81468299,135.62,135.59,0.69121908]
[1767996836697,2.92314095,135.62,135.58,0.69121908]
[1767996837091,23.75701312,135.62,135.58,0.69121908]
[1767996838296,4.89897851,135.61,135.58,0.69121908]
[1767996842800,12.27308693,135.61,135.58,0.69121908]
[1767996843000,4.89897851,135.6,135.58,0.69121908]
[1767996844698,20.83381661,135.62,135.58,0.69121908]
[1767996844898,4.90869813,135.61,135.58,0.69121908]
[1767996846385,12.28285844,135.61,135.58,0.69121908]
[1767996846586,4.90869813,135.6,135.58,0.69121908]
[1767996847907,20.83376941,135.62,135.58,0.69121908]
[1767996848096,4.91053088,135.61,135.58,0.69121908]
[1767996850088,4.91053088,135.61,135.59,0.71232201]
[1767996850497,8.07142679,135.65,135.6,2.92314095]
[1767996850803,24.45456774,135.65,135.6,2.92314095]
[1767996851001,24.45456774,135.65,135.61,0.71232201]
[1767996851204,24.45456774,135.65,135.61,0.65232201]
[1767996851994,0.25620693,135.64,135.61,0.59232201]
[1767996852195,0.25620693,135.64,135.61,0.53232201]
[1767996852511,0.25620693,135.64,135.59,10.29805153]
[1767996853016,0.25620693,135.64,135.6,2.92314095]
[1767996853195,7.62873821,135.64,135.6,2.92314095]
[1767996854196,7.62873821,135.64,135.61,0.71232201]
[1767996855292,7.37253128,135.64,135.61,0.71232201]
[1767996856211,7.68813821,135.64,135.61,0.71232201]
[1767996856795,7.68813821,135.64,135.6,5.28424546]
[1767996857115,7.68813821,135.64,135.61,0.71232201]
[1767996858298,0.69545502,135.63,135.6,0.71232201]
[1767996858615,0.31940541,135.62,135.59,0.71232201]
[1767996862506,5.24470518,135.62,135.59,0.71232201]
[1767996862717,0.69169452,135.61,135.58,5.28424546]
[1767996863014,4.92502945,135.61,135.58,5.28424546]
[1767996863203,4.92502945,135.61,135.59,0.71232201]
[1767996865210,0.31560693,135.63,135.6,0.71232201]
[1767996865511,0.31560693,135.63,135.6,4.57192345]
[1767996866095,0.31560693,135.63,135.61,4.57192345]
[1767996867015,0.31560693,135.63,135.59,0.71232201]
[1767996867209,0.31560693,135.63,135.6,4.57192345]
[1767996869225,0.31560693,135.63,135.61,4.57192345]
[1767996870626,0.69929187,135.64,135.61,5.28424546]
[1767996870835,0.69929187,135.67,135.62,0.71232201]
[1767996871136,6.6801107,135.68,135.59,4.57192345]
[1767996871137,0.69929187,135.68,135.64,5.28424546]
[1767996871441,0.69929187,135.68,135.65,0.71232201]
[1767996871626,37.15615062,135.69,135.65,0.65232201]
[1767996871834,7.37059099,135.68,135.65,0.65232201]
[1767996872020,20.82999383,135.69,135.65,4.57192345]
[1767996873729,20.82999383,135.69,135.66,0.68841125]
[1767996874727,20.82999383,135.69,135.67,0.68841125]
[1767996874728,13.46,135.69,135.67,0.68841125]
[1767996874932,8.06960471,135.71,135.67,5.2603347]
[1767996875234,21.52960471,135.71,135.67,5.2603347]
[1767996877016,0.37362948,135.7,135.67,5.2603347]
[1767996879527,7.74200696,135.72,135.69,4.57192345]
[1767996879723,0.69741269,135.71,135.68,5.2603347]
[1767996880826,8.06617239,135.71,135.68,5.2603347]
[1767996882427,8.06617239,135.71,135.69,4.57192345]
[1767996885046,0.69741269,135.71,135.69,4.57192345]
[1767996885543,8.06608681,135.71,135.69,4.57192345]
[1767996885714,7.74180942,135.72,135.7,4.57192345]
[1767996885917,7.74180942,135.72,135.7,4.51192345]
[1767996886535,7.74180942,135.72,135.69,5.2603347]
[1767996887032,4.57192345,135.74,135.71,4.57192345]
[1767996887033,0.70068323,135.74,135.71,4.57192345]
[1767996887344,20.8272526,135.74,135.71,4.45192345]
[1767996887545,13.46,135.74,135.67,18.42654129]
[1767996887722,7.56672482,135.75,135.72,4.57192345]
[1767996888232,0.69800669,135.74,135.72,4.13184339]
[1767996888625,0.69800669,135.74,135.69,7.36947275]
[1767996888838,0.69800669,135.74,135.71,4.57192345]
[1767996889139,8.16473151,135.75,135.72,4.57192345]
[1767996889548,0.099,135.74,135.72,4.57192345]
[1767996891549,8.16473151,135.75,135.72,4.57192345]
[1767996893147,0.099,135.74,135.72,4.57192345]
[1767996895146,7.56672482,135.75,135.73,4.57192345]
[1767996895647,7.56672482,135.75,135.74,4.57192345]
[1767996895839,7.56672482,135.75,135.7,8.06395556]
[1767996896548,7.56672482,135.75,135.74,4.57192345]
[1767996896745,7.56672482,135.75,135.7,8.06395556]
[1767996896953,7.56672482,135.75,135.74,4.57192345]
[1767996897260,0.49900669,135.74,135.7,8.06395556]
[1767996897456,7.56672482,135.75,135.73,4.57192345]
[1767996897638,7.56672482,135.75,135.71,0.69482415]
[1767996897953,7.56672482,135.75,135.74,4.57192345]
[1767996898158,7.56672482,135.75,135.71,0.69482415]
[1767996898453,0.2,135.75,135.74,4.57192345]
[1767996898843,0.2,135.75,135.73,5.2667476]
[1767996899038,7.56655632,135.75,135.73,5.2667476]
[1767996899635,0.2,135.75,135.74,4.57192345]
[1767996899836,20.82618182,135.76,135.74,5.2667476]
[1767996900036,20.82618182,135.76,135.75,4.57192345]
[1767996900252,0.28432314,135.78,135.75,4.57192345]
[1767996900428,0.28432314,135.78,135.77,4.57192345]
[1767996900630,0.28432314,135.78,135.74,0.69482415]
[1767996900830,50.28275591,135.79,135.77,4.57192345]
[1767996900831,13.74432314,135.79,135.77,4.57192345]
[1767996901030,13.74432314,135.79,135.77,4.51192345]
[1767996901249,20.1401107,135.8,135.75,0.69482415]
[1767996901480,20.1401107,135.8,135.78,4.57192345]
[1767996901639,20.1401107,135.8,135.75,0.69482415]
[1767996901640,45.91399731,135.8,135.75,0.69482415]
[1767996901843,45.91399731,135.8,135.76,4.57192345]
[1767996902473,4.57192345,135.78,135.69,0.69482415]
[1767996902760,4.57192345,135.74,135.69,0.69482415]
[1767996902965,4.57192345,135.74,135.7,0.69482415]
[1767996903145,6.96443384,135.76,135.7,0.69482415]
[1767996903346,7.36756796,135.73,135.7,0.69482415]
[1767996904664,25.78314329,135.75,135.7,5.2667476]
[1767996904966,4.57192345,135.74,135.7,0.69482415]
[1767996905638,4.57192345,135.74,135.7,5.2667476]
[1767996905836,30.35506674,135.75,135.7,0.69482415]
[1767996906148,4.57192345,135.74,135.7,0.69482415]
[1767996906351,4.57192345,135.74,135.69,5.27099149]
[1767996906553,4.57192345,135.73,135.69,0.69906804]
[1767996906857,7.36811081,135.72,135.69,0.69906804]
[1767996907058,7.36811081,135.72,135.68,5.27099149]
[1767996909565,25.78754919,135.73,135.69,4.57192345]
[1767996909767,25.78754919,135.73,135.7,4.57192345]
[1767996909948,25.78754919,135.73,135.69,4.57192345]
[1767996910650,25.78754919,135.73,135.69,5.27099149]
[1767996911161,30.35947264,135.73,135.69,0.69906804]
[1767996911359,25.78754919,135.73,135.69,0.69906804]
[1767996913774,56.97170472,135.76,135.71,0.69906804]
[1767996913775,11.25203415,135.76,135.71,0.69906804]
[1767996914069,7.36666599,135.75,135.72,0.69906804]
[1767996914966,7.36593989,135.76,135.72,0.69906804]
[1767996915188,7.36593989,135.76,135.71,4.57192345]
[1767996915189,7.36593989,135.76,135.74,0.69906804]
[1767996915465,7.36593989,135.76,135.73,0.69906804]
[1767996915654,11.93713891,135.78,135.74,0.69906804]
[1767996916243,7.36521546,135.78,135.74,0.69906804]
[1767996919769,2.92022684,135.77,135.74,0.69906804]
[1767996919970,2.92022684,135.77,135.74,0.63906804]
[1767996920373,2.92022684,135.77,135.74,0.57906804]
[1767996921054,7.36593989,135.76,135.74,0.57906804]
[1767996921578,7.36593989,135.76,135.74,0.51906804]
[1767996921979,7.36593989,135.76,135.71,10.28882723]
[1767996921980,0.62955032,135.74,135.68,13.46]
[1767996922195,3.54977716,135.74,135.69,7.36945574]
[1767996923076,10.91682009,135.74,135.69,10.28968258]
[1767996923489,10.91682009,135.74,135.64,18.4298795]
[1767996923490,2.92022684,135.71,135.64,18.4298795]
[1767996923689,2.92022684,135.71,135.66,7.37109372]
[1767996923861,2.92022684,135.71,135.67,0.69906804]
[1767996924364,3.54515988,135.72,135.68,0.69906804]
[1767996924569,2.92022684,135.72,135.68,0.69906804]
[1767996925098,0.96677846,135.73,135.68,0.69906804]
[1767996925099,2.92022684,135.71,135.68,0.69906804]
[1767996925994,10.28912286,135.71,135.68,0.69906804]
[1767996930795,2.92022684,135.69,135.66,0.69906804]
[1767996931800,28.83396059,135.7,135.66,0.69906804]
[1767996933473,7.36968188,135.7,135.66,0.69906804]
[1767996937899,10.94632457,135.7,135.66,0.69906804]
[1767996938093,10.28990872,135.7,135.66,0.69906804]
[1767996938495,10.94632457,135.7,135.66,0.69906804]
[1767996940799,7.36968188,135.7,135.66,0.69906804]
[1767996940996,10.28990872,135.7,135.66,0.69906804]
[1767996942906,7.36968188,135.7,135.66,0.69906804]
[1767996949710,7.5057036,135.7,135.66,0.69906804]
[1767996951519,7.36968188,135.7,135.66,0.69906804]
[1767996952520,8.06274923,135.7,135.66,0.69906804]
[1767996952696,7.36968188,135.7,135.66,0.69906804]
[1767996954200,7.46868188,135.7,135.66,0.69906804]
[1767996959328,0.099,135.7,135.66,0.69906804]
[1767996960529,29.41007239,135.71,135.66,0.69906804]
[1767996961037,0.099,135.7,135.66,0.69906804]
[1767996963534,7.36865374,135.71,135.67,0.66797554]
[1767996964114,8.06074509,135.73,135.69,0.66797554]
[1767996964536,10.98097193,135.73,135.69,0.66797554]
[1767996964834,2.92022684,135.73,135.69,0.66797554]
[1767996965010,0.099,135.73,135.69,0.66797554]
[1767996965212,10.98654095,135.74,135.7,0.66797554]
[1767996965631,0.099,135.73,135.7,0.66797554]
[1767996967332,10.28747291,135.74,135.7,0.66797554]
[1767996967525,8.06031342,135.74,135.7,0.66797554]
[1767996967722,10.98054026,135.74,135.7,0.66797554]
[1767996969047,8.06031342,135.74,135.7,2.92022684]
[1767996969238,8.06031342,135.74,135.71,0.66797554]
[1767996972044,0.10494068,135.73,135.7,0.66797554]
[1767996972245,7.47304762,135.73,135.7,0.66797554]
[1767996972647,0.68718608,135.72,135.69,3.58820238]
[1767996973025,8.06717498,135.73,135.7,0.66797554]
[1767996976852,8.06717498,135.73,135.7,5.23390172]
[1767996977149,26.48365621,135.74,135.71,0.66797554]
[1767996977848,0.099,135.73,135.71,0.66797554]
[1767996978038,0.099,135.73,135.7,5.23390172]
[1767996983172,6.47330342,135.77,135.72,0.66797554]
[1767996983367,25.92985574,135.78,135.76,4.56592618]
[1767996983661,8.06330191,135.8,135.76,5.23390172]
[1767996983841,8.06330191,135.8,135.76,0.66797554]
[1767996984038,8.06330191,135.8,135.76,5.23390172]
[1767996984469,0.89906804,135.81,135.78,4.56592618]
[1767996984762,0.17000001,135.81,135.8,0.66797554]
[1767996984962,0.14000002,135.81,135.8,0.66797554]
[1767996985264,25.76181363,135.86,135.8,5.23390172]
[1767996985747,30.32773981,135.86,135.8,5.23390172]
[1767996985947,30.32773981,135.86,135.81,0.66797554]
[1767996986150,0.28432314,135.85,135.81,0.66797554]
[1767996986358,30.32773981,135.86,135.81,0.66797554]
[1767996986743,0.28432314,135.85,135.81,4.56592618]
[1767996986951,0.28432314,135.85,135.81,5.23390172]
[1767996987151,7.36160188,135.84,135.81,5.23390172]
[1767996988045,7.36160188,135.84,135.81,0.66797554]
[1767996991046,11.92752806,135.84,135.8,0.66797554]